fUSD/lending_fUSD_20260409
["ID","MTS","AMOUNT","RATE_DAILY","PERIOD"]
[420122656,1775695842713,-1573.0,0.0001536,2]
[420122657,1775695842722,-162.0,0.0001536,2]
[420122658,1775695842731,-500.0,0.00015364,2]
[420122659,1775695842740,-151.0,0.00015364,2]
[420122660,1775695842750,-477.37694835,0.00015384,3]
[420122661,1775695842760,-1049.01609905,0.00015396,2]
[420122662,1775695842769,-1054.73697467,0.00015396,2]
[420122663,1775695842779,-1090.94376283,0.00015396,2]
[420122664,1775695842788,-1083.79093144,0.00015396,2]
[420122665,1775695842798,-1116.23365768,0.00015396,2]
[420122666,1775695842808,-1023.01773975,0.00015396,2]
[420122667,1775695842818,-1121.2675929,0.00015396,2]
[420122668,1775695842828,-1125.4106093,0.00015396,2]
[420122669,1775695842837,-1054.28402624,0.00015396,2]
[420122670,1775695842847,-1111.95768822,0.00015396,2]
[420122671,1775695842857,-1142.0097485,0.00015396,2]
[420122672,1775695842866,-1124.29642229,0.00015396,2]
[420122673,1775695842876,-1131.15180983,0.00015396,2]
[420122674,1775695842886,-1053.32278236,0.00015396,2]
[420122675,1775695842896,-1016.17855473,0.00015396,2]
[420122676,1775695842907,-1325.12826518,0.00015396,2]
[420122677,1775695842917,-1600.0,0.000154,5]
[420122678,1775695842927,-500.0,0.00015405,2]
[420122679,1775695842936,-2000.0,0.00015405,2]
[420122680,1775695842946,-2968.0,0.00015413,2]
[420122681,1775695842956,-500.0,0.00015418,2]
[420122682,1775695842966,-500.0,0.00015418,2]
[420122683,1775695842975,-500.0,0.00015418,5]
[420122684,1775695842986,-500.0,0.00015418,2]
[420122685,1775695842995,-500.0,0.00015419,2]
[420122686,1775695843004,-151.0,0.00015419,2]
[420122687,1775695843014,-1793.0,0.00015432,2]
[420122688,1775695843024,-1904.19,0.00015471,2]
[420122690,1775695843035,-1235.18214925,0.00015472,2]
[420122692,1775695843045,-200.0,0.00015472,2]
[420122694,1775695843056,-181.08010149,0.00015472,2]
[420122695,1775695843066,-771.01748645,0.00015472,2]
[420122696,1775695843077,-181.08010149,0.00015472,2]
[420122697,1775695843088,-246.02199486,0.00015472,2]
[420122698,1775695843100,-500.0,0.00015474,2]
[420122699,1775695843110,-151.0,0.00015474,2]
[420122700,1775695843121,-173.869,0.00015474,2]
[420122701,1775695843132,-3259.631,0.00015499,2]
[420122702,1775695843142,-2000.0,0.000155,5]
[420122703,1775695843153,-2000.0,0.000155,2]
[420122704,1775695843162,-4000.0,0.00015507,2]
[420122705,1775695843172,-500.0,0.00015529,2]
[420122706,1775695843182,-151.0,0.00015529,2]
[420122707,1775695843192,-10000.0,0.00015571,2]
[420122708,1775695843203,-500.0,0.00015583,2]
[420122709,1775695843213,-500.0,0.00015584,2]
[420122710,1775695843224,-151.0,0.00015584,2]
[420122711,1775695843234,-500.0,0.00015584,2]
[420122712,1775695843245,-500.0,0.00015584,2]
[420122713,1775695843255,-500.0,0.00015584,2]
[420122714,1775695843265,-500.0,0.00015584,2]
[420122715,1775695843276,-200.0,0.00015584,2]
[420122716,1775695843286,-5000.0,0.000156,2]
[420122718,1775695843297,-400.0,0.000156,5]
[420122720,1775695843307,-1910.0,0.0001561,5]
[420122722,1775695843317,-199.65206887,0.0001561,2]
[420122724,1775695843328,-380.10825736,0.0001561,2]
[420122726,1775695843338,-644.17707929,0.0001561,2]
[420122728,1775695843349,-4287.4299861,0.0001561,2]
[420122730,1775695843360,-17691.73925915,0.0001561,2]
[420122732,1775695843370,-785.56,0.00015625,2]
[420122734,1775695843381,-500.0,0.00015639,2]
[420122736,1775695843391,-151.0,0.00015639,2]
[420122738,1775695843402,-250.0,0.00015644,2]
[420122740,1775695843413,-500.0,0.00015644,2]
[420122742,1775695843423,-340.66,0.00015664,2]
[420122745,1775695843434,-4287.42998608,0.00015668,2]
[420122746,1775695843445,-334.26277974,0.00015673,2]
[420122747,1775695843455,-813.20780047,0.0001568,2]
[420122748,1775695843464,-1573.0,0.0001568,2]
[420122749,1775695843474,-1573.0,0.0001568,2]
[420122750,1775695843484,-174.77031643,0.0001569,2]
[420122751,1775695843495,-350.0,0.00015691,2]
[420122752,1775695843505,-500.0,0.00015694,2]
[420122753,1775695843515,-151.0,0.00015694,2]
[420122754,1775695843525,-1000.0,0.00015698,2]
[420122755,1775695843535,-500.0,0.00015699,6]
[420122756,1775695843545,-2656.1178324,0.000157,2]
[420122757,1775695843556,-286214.1894722,0.000157,2]
[420122758,1775695843566,-70326.8388058,0.000157,2]
[420122759,1775695843576,-183821.5993908,0.000157,2]
[420122760,1775695843587,-4472.3091667,0.000157,2]
[420122761,1775695843596,-5306.4260851,0.000157,2]
[420122762,1775695843607,-4864.4739454,0.000157,2]
[420122763,1775695843617,-400.0,0.000157,5]
[420122764,1775695843626,-306.0,0.000157,2]
[420122765,1775695843636,-1000.0,0.000157,2]
[420122766,1775695843647,-14975.1859204,0.000157,2]
[420122767,1775695843657,-313.0,0.000157,2]
[420122768,1775695843667,-878.0,0.000157,2]
[420122769,1775695843678,-2000.0,0.000157,2]
[420122770,1775695843689,-1000.0,0.00015704,2]
[420122771,1775695843698,-1000.0,0.00015704,2]
[420122772,1775695843708,-1000.0,0.00015704,2]
[420122773,1775695843719,-1000.0,0.00015704,2]
[420122774,1775695843729,-1000.0,0.00015704,2]
[420122775,1775695843739,-1000.0,0.00015704,2]
[420122776,1775695843749,-1000.0,0.00015704,2]
[420122777,1775695843759,-1000.0,0.00015704,2]
[420122778,1775695843769,-1000.0,0.00015704,2]
[420122779,1775695843779,-1000.0,0.00015704,2]
[420122780,1775695843791,-1000.0,0.00015704,2]
[420122781,1775695843801,-398.985,0.00015704,2]
[420122782,1775695843811,-248.882292,0.00015707,2]
[420122783,1775695843821,-151.0,0.00015707,2]
[420122784,1775695843832,-150.0,0.00015707,2]
[420122785,1775695843843,-150.0,0.00015707,2]
[420122786,1775695843854,-150.0,0.00015708,2]
[420122787,1775695843864,-150.0,0.00015708,2]
[420122788,1775695843875,-150.0,0.00015708,2]
[420122789,1775695843885,-1099.20357934,0.00015709,5]
[420122790,1775695843895,-666.0,0.00015709,2]
[420122791,1775695843907,-2385.0,0.0001571,5]
[420122792,1775695843917,-2058931.75377777,0.0001571,2]
[420122798,1775695845774,-500.0,0.00010798,2]
[420122799,1775695845784,-551.7396594,0.00010798,2]
[420122800,1775695845794,-1125.98955501,0.0001363,2]
[420122801,1775695845804,-85.91157233,0.00015268,2]
[420122802,1775695845837,-450.80717254,0.00015268,2]
[420122803,1775695845849,-712.40607935,0.00015268,2]
[420122804,1775695845904,-502.0,0.000131,2]
[420122805,1775695845914,-2492.60849894,0.00015268,2]
[420122806,1775695845926,-313.11540083,0.00015268,2]
[420122807,1775695845938,-1458.670872,0.00015268,2]
[420122808,1775695845950,-508.48040401,0.00015268,2]
[420122809,1775695845960,-14953.67715898,0.0001571,2]
[420122810,1775695846306,-371.095,0.00014042,2]
[420122811,1775695846319,-130.905,0.00014042,2]
[420122812,1775695846329,-239.545,0.00014985,3]
[420122813,1775695846341,-262.455,0.00014985,3]
[420122814,1775695846351,-948.74243389,0.0001568,2]
[420122815,1775695846360,-12966.56136065,0.0001571,2]
[420122816,1775695846605,-643.80513405,0.0001571,2]
[420122817,1775695846616,-1028.73033201,0.0001571,2]
[420122818,1775695846644,-2435.31727346,0.0001571,2]
[420122930,1775696432964,171.49,7.15e-05,2]
[420122953,1775697035024,-171.49,9.533e-05,2]
[420122954,1775697035033,-287.0,9.533e-05,2]
[420122955,1775697035044,-224.20998504,9.771e-05,2]
[420122956,1775697035053,-150.0,0.00010296,2]
[420122958,1775697035063,-252.70001494,0.00010486,2]
[420122959,1775697035075,-614.79417446,0.00010486,2]
[420122960,1775697035085,-36.50582555,0.00010486,2]
[420122961,1775697035098,-213.49417445,0.00010486,2]
[420122962,1775697035108,-250.0,0.00010486,2]
[420122963,1775697035117,-244.25441518,0.00010598,2]
[420122964,1775697035127,-429.88163705,0.00010598,2]
[420122965,1775697035138,-500.0,0.00010598,2]
[420122966,1775697035148,-500.0,0.00010598,2]
[420122967,1775697035158,-440.55545411,0.00010598,2]
[420122968,1775697035168,-500.0,0.00010598,2]
[420122969,1775697035178,-500.0,0.00010598,2]
[420122970,1775697035188,-500.0,0.00010598,2]
[420122971,1775697035197,-500.0,0.00010598,2]
[420122972,1775697035206,-500.0,0.00010598,2]
[420122973,1775697035216,-500.0,0.00010598,2]
[420122974,1775697035226,-500.0,0.00010598,2]
[420122975,1775697035235,-587.66506797,0.00010598,2]
[420122976,1775697035245,-500.0,0.00010598,2]
[420122977,1775697035255,-500.0,0.00010598,2]
[420122978,1775697035265,-528.24932039,0.00010598,2]
[420122979,1775697035274,-300.0,0.00010598,2]
[420122980,1775697035284,-1200.0,0.00010598,2]
[420122981,1775697035294,-28804.17020771,0.00010599,2]
[420122982,1775697035307,-305.33945671,0.00010599,2]
[420122983,1775697035412,-1281.47839901,0.00010599,2]
[420122984,1775697035424,-708.49630476,0.00010599,2]
[420122985,1775697035435,-132433.1091503,0.00010599,2]
[420122986,1775697035446,-83688.42729747,0.00010599,2]
[420123000,1775697038574,-332184.28331071,0.00010599,2]
[420123002,1775697038586,-106293.15447333,0.00010599,2]
[420123003,1775697038596,-300.0,0.00010691,2]
[420123004,1775697038606,-151.0,0.00010692,2]
[420123005,1775697038617,-151.0,0.00010692,2]
[420123006,1775697038627,-151.0,0.00010692,2]
[420123007,1775697038637,-151.0,0.00010692,2]
[420123008,1775697038647,-151.0,0.00010692,2]
[420123009,1775697038657,-151.0,0.00010692,2]
[420123010,1775697038667,-151.0,0.00010692,2]
[420123011,1775697038677,-500.0,0.00010692,2]
[420123012,1775697038690,-151.0,0.00010692,2]
[420123013,1775697038701,-500.0,0.00010692,2]
[420123014,1775697038711,-500.0,0.00010692,2]
[420123015,1775697038721,-293.46985931,0.00010692,2]
[420123016,1775697038731,-287.12295447,0.00010698,2]
[420123017,1775697038741,-150.0,0.00010698,2]
[420123018,1775697038751,-16076.80690311,0.000107,2]
[420123019,1775697038760,-293.54777718,0.00010797,2]
[420123020,1775697038770,-3847.1228,0.00010798,2]
[420123021,1775697038781,-150.0,0.000109,2]
[420123022,1775697038790,-500.0,0.00010959,2]
[420123023,1775697038800,-2605.3290573,0.00011,2]
[420123024,1775697038811,-150.99,0.00011281,2]
[420123025,1775697038821,-9999.99,0.00011281,2]
[420123026,1775697038830,-150.99,0.00011281,2]
[420123027,1775697038840,-410.38561367,0.000114,2]
[420123028,1775697038852,-500.0,0.000114,2]
[420123029,1775697038862,-500.0,0.000114,2]
[420123030,1775697038872,-167.76796681,0.000114,2]
[420123031,1775697038882,-500.0,0.000114,2]
[420123032,1775697038893,-160.42714927,0.000114,2]
[420123033,1775697038903,-500.0,0.000114,2]
[420123034,1775697038914,-420.0,0.00011651,2]
[420123035,1775697038924,-1680.0,0.00011658,2]
[420123036,1775697038934,-255.0,0.00011736,2]
[420123037,1775697038944,-287.0,0.00011752,2]
[420123038,1775697038954,-150.0,0.00011852,2]
[420123039,1775697038964,-171.49,0.00011916,2]
[420123040,1775697038975,-692.50475,0.00011948,2]
[420123041,1775697038985,-1012.47134075,0.00011948,2]
[420123042,1775697038995,-166.08637647,0.00012082,2]
[420123043,1775697039005,-173.2082,0.000123,2]
[420123044,1775697039016,-185.0,0.00012466,2]
[420123045,1775697039026,-587.0,0.00012808,2]
[420123046,1775697039037,-2351.0,0.00012823,2]
[420123047,1775697039047,-433.0,0.0001287,2]
[420123048,1775697039060,-303.37368525,0.00012898,2]
[420123050,1775697039070,-1000.0,0.00012936,2]
[420123051,1775697039080,-103945.1361867,0.00012999,2]
[420123053,1775697039091,-170.03631461,0.00013,2]
[420123056,1775697039102,-502.0,0.000131,2]
[420123058,1775697039111,-383.03666175,0.00013216,2]
[420123060,1775697039122,-163.43,0.00013351,2]
[420123083,1775697039341,-651.16232498,0.0001349,2]
[420123085,1775697039352,-200.0072,0.000136,2]
[420123088,1775697039362,-536.64157914,0.00013698,2]
[420123090,1775697039373,-500.0,0.00013698,2]
[420123092,1775697039383,-500.0,0.00013698,2]
[420123094,1775697039394,-500.0,0.00013698,2]
[420123096,1775697039405,-500.0,0.00013698,2]
[420123098,1775697039415,-811.62,0.00013699,2]
[420123100,1775697039425,-198.84,0.00013699,2]
[420123102,1775697039435,-225.10747537,0.00013699,2]
[420123104,1775697039446,-542.63527082,0.00013764,7]
[420123106,1775697039455,-2000.0,0.00013767,2]
[420123108,1775697039465,-47249.62,0.00013789,2]
[420123110,1775697039475,-3240.0,0.00013789,2]
[420123113,1775697039486,-1000.0,0.00013792,2]
[420123115,1775697039496,-1600.0,0.00013793,2]
[420123117,1775697039505,-5645.69339955,0.000139,3]
[420123119,1775697039515,-1000.0,0.00014023,2]
[420123121,1775697039525,-1000.0,0.0001406,2]
[420123123,1775697039534,-168.12,0.00014076,2]
[420123125,1775697039545,-823.0,0.0001408,2]
[420123127,1775697039554,-502.0,0.00014084,2]
[420123129,1775697039564,-193.60696256,0.00014104,2]
[420123131,1775697039574,-3292.0,0.00014106,2]
[420123133,1775697039584,-736.0,0.00014121,2]
[420123135,1775697039594,-828.84452544,0.00014159,2]
[420123136,1775697039604,-434.10821665,0.00014175,7]
[420123137,1775697039614,-163.43,0.00014186,2]
[420123138,1775697039623,-159.0,0.000142,2]
[420123139,1775697039633,-159.0,0.000142,2]
[420123140,1775697039643,-160.0,0.00014284,2]
[420123141,1775697039653,-171.49,0.00014299,2]
[420123142,1775697039664,-170.03631461,0.00014302,2]
[420123143,1775697039674,-150.0,0.00014303,2]
[420123144,1775697039684,-150.0,0.00014367,2]
[420123145,1775697039694,-811.62,0.00014384,2]
[420123146,1775697039704,-1000.0,0.00014396,2]
[420123147,1775697039714,-1573.0,0.000144,2]
[420123148,1775697039724,-162.0,0.000144,2]
[420123149,1775697039733,-342.03391343,0.00014412,2]
[420123150,1775697039810,-703.96608657,0.00014412,2]
[420123151,1775697039820,-1347.0,0.00014412,2]
[420123152,1775697039831,-2094.03391344,0.00014412,2]
[420123153,1775697039844,-783.09266786,0.00014412,2]
[420123154,1775697039859,-261.18187464,0.00014412,2]
[420123155,1775697039871,-385.69154406,0.00014412,2]
[420123156,1775697039881,-42.73546358,0.00014412,2]
[420123157,1775697039894,-107.94353642,0.00014412,2]
[420123158,1775697039904,-872.59446974,0.00014412,2]
[420123159,1775697039929,-391.40553026,0.00014412,2]
[420123160,1775697039940,-393.84552864,0.00014412,2]
[420123161,1775697039953,-823.15447136,0.00014412,2]
[420123162,1775697039963,-926.0,0.00014412,2]
[420123163,1775697039973,-2471.0,0.00014412,2]
[420123164,1775697039983,-609.912415,0.00014412,2]
[420123165,1775697039996,-3162.087585,0.00014412,2]
[420123166,1775697040006,-673.18935117,0.00014442,2]
[420123167,1775697040019,-326.81064883,0.00014442,2]
[420123168,1775697040029,-213.02785117,0.00014443,2]
[420123169,1775697040042,-500.0,0.00014443,2]
[420123170,1775697040055,-3658.16629207,0.00014443,2]
[420123175,1775697041022,-310.80585676,0.00014443,2]
[420123176,1775697041032,-1000.0,0.00014458,2]
[420123177,1775697041042,-338.38150978,0.00014499,2]
[420123178,1775697041055,-413.58258252,0.00014499,2]
[420123179,1775697041067,-255.958343,0.00014499,2]
[420123180,1775697041077,-196.65750032,0.00014508,2]
[420123181,1775697041087,-1000.0,0.0001453,2]
[420123182,1775697041096,-325.58116249,0.00014586,7]
[420123183,1775697041105,-992.0775647,0.00014598,2]
[420123184,1775697041115,-444.36,0.00014598,2]
[420123185,1775697041125,-1000.0,0.00014622,2]
[420123186,1775697041135,-150.0,0.00014649,2]
[420123187,1775697041146,-156.8971398,0.00014655,2]
[420123188,1775697041156,-1000.0,0.00014676,2]
[420123189,1775697041166,-179.848897,0.00014679,7]
[420123190,1775697041177,-1000.0,0.00014688,2]
[420123191,1775697041188,-1000.0,0.00014689,2]
[420123192,1775697041198,-1000.0,0.00014694,2]
[420123193,1775697041207,-162.0,0.0001472,2]
[420123194,1775697041217,-240.224064,0.00014721,2]
[420123195,1775697041227,-319.332794,0.00014733,7]
[420123196,1775697041237,-247.724834,0.00014739,7]
[420123197,1775697041247,-1000.0,0.00014823,2]
[420123198,1775697041257,-1789.0,0.00014835,2]
[420123199,1775697041267,-168.12,0.00014851,2]
[420123200,1775697041276,-1000.0,0.00014878,2]
[420123201,1775697041286,-230.9526,0.000149,2]
[420123202,1775697041296,-500.0,0.00014904,2]
[420123203,1775697041306,-1789.0,0.00014918,2]
[420123204,1775697041316,-174.61919141,0.00014924,2]
[420123205,1775697041326,-200.0,0.00014924,2]
[420123206,1775697041337,-7965.41053268,0.00014924,2]
[420123207,1775697041346,-578.20924308,0.00014924,2]
[420123208,1775697041356,-601.3376128,0.00014924,2]
[420123209,1775697041366,-500.0,0.00014924,2]
[420123210,1775697041376,-1191.11104075,0.00014924,2]
[420123211,1775697041386,-743.50770149,0.00014924,2]
[420123212,1775697041396,-151.0,0.00014924,2]
[420123213,1775697041406,-599.60298507,0.00014924,2]
[420123214,1775697041416,-290.26104003,0.00014924,2]
[420123215,1775697041426,-174.61919141,0.00014924,2]
[420123216,1775697041436,-350.0,0.00014942,2]
[420123217,1775697041447,-159.55469561,0.00014953,2]
[420123218,1775697041457,-444.37650523,0.00014963,2]
[420123219,1775697041467,-8260.13072239,0.00014979,2]
[420123220,1775697041476,-500.0,0.00014979,2]
[420123221,1775697041486,-151.0,0.00014979,2]
[420123222,1775697041496,-159.0,0.0001498,2]
[420123223,1775697041505,-159.0,0.0001498,2]
[420123224,1775697041515,-152.80820585,0.00014984,2]
[420123225,1775697041525,-170.13892723,0.00014984,2]
[420123226,1775697041535,-179.17036098,0.00014984,2]
[420123227,1775697041544,-477.15533545,0.00014992,2]
[420123228,1775697041554,-2756.92717347,0.00015,2]
[420123229,1775697041564,-426.08187867,0.00015,2]
[420123230,1775697041574,-171.25,0.00015,2]
[420123231,1775697041584,-1007.07827575,0.00015,2]
[420123232,1775697041595,-163.43,0.0001502,2]
[420123233,1775697041604,-1000.0,0.00015021,2]
[420123234,1775697041614,-1000.0,0.00015023,2]
[420123235,1775697041624,-8645.95217021,0.00015034,2]
[420123236,1775697041634,-500.0,0.00015034,2]
[420123237,1775697041644,-151.0,0.00015034,2]
[420123238,1775697041654,-1573.0,0.0001504,2]
[420123239,1775697041664,-162.0,0.0001504,2]
[420123240,1775697041674,-1573.0,0.0001504,2]
[420123241,1775697041683,-1573.0,0.0001504,2]
[420123242,1775697041693,-1000.0,0.00015046,2]
[420123243,1775697041703,-502.0,0.00015068,3]
[420123244,1775697041713,-811.62,0.00015068,2]
[420123245,1775697041722,-800.0,0.00015068,2]
[420123246,1775697041732,-150.0,0.00015084,2]
[420123247,1775697041741,-4310.90487752,0.00015089,2]
[420123248,1775697041751,-2057.58181954,0.00015089,2]
[420123249,1775697041761,-1309.1028729,0.00015089,2]
[420123250,1775697041771,-500.0,0.00015089,2]
[420123251,1775697041782,-151.0,0.00015089,2]
[420123252,1775697041792,-900.0,0.000151,5]
[420123253,1775697041802,-2000.0,0.000151,2]
[420123254,1775697041811,-284.0,0.00015114,2]
[420123255,1775697041820,-500.0,0.00015144,2]
[420123256,1775697041830,-151.0,0.00015144,2]
[420123257,1775697041840,-243.40394142,0.00015178,2]
[420123258,1775697041852,-756.59605858,0.00015178,2]
[420123259,1775697041863,-500.0,0.00015199,2]
[420123260,1775697041872,-151.0,0.00015199,2]
[420123261,1775697041882,-1376.44388638,0.000152,5]
[420123264,1775697041985,-421.74573713,0.000152,5]
[420123266,1775697041997,-1.81037649,0.000152,5]
[420123267,1775697042007,-4777.95472149,0.00015205,2]
[420123268,1775697042019,-641.25527851,0.00015205,2]
[420123269,1775697042029,-1000.0,0.00015211,2]
[420123270,1775697042039,-500.0,0.00015254,2]
[420123271,1775697042048,-151.0,0.00015254,2]
[420123272,1775697042058,-992.0775647,0.00015259,2]
[420123273,1775697042068,-500.0,0.00015267,2]
[420123274,1775697042078,-500.0,0.00015267,2]
[420123275,1775697042088,-1366.0,0.00015268,5]
[420123276,1775697042098,-200.0,0.00015268,2]
[420123277,1775697042108,-250.0,0.00015268,2]
[420123278,1775697042119,-250.0,0.00015268,2]
[420123279,1775697042129,-225.648,0.00015268,2]
[420123280,1775697042139,-208.195,0.00015268,2]
[420123281,1775697042153,-250.0,0.00015268,2]
[420123282,1775697042163,-163.308,0.00015268,2]
[420123283,1775697042172,-250.0,0.00015268,2]
[420123284,1775697042183,-155.122,0.00015268,2]
[420123285,1775697042193,-193.665,0.00015268,2]
[420123286,1775697042203,-166.211,0.00015268,2]
[420123287,1775697042213,-215.048,0.00015268,2]
[420123288,1775697042223,-250.0,0.00015268,2]
[420123289,1775697042233,-180.0,0.00015268,2]
[420123290,1775697042243,-622.0,0.00015268,2]
[420123291,1775697042253,-1000.0,0.0001527,2]
[420123292,1775697042264,-217.05410833,0.00015271,7]
[420123293,1775697042274,-457.63,0.00015271,2]
[420123294,1775697042284,-3965.0,0.00015283,2]
[420123295,1775697042669,-992.0775647,0.00015289,2]
[420123296,1775697042743,-159.0,0.000153,2]
[420123297,1775697042752,-159.0,0.000153,2]
[420123298,1775697042762,-151.51,0.000153,2]
[420123299,1775697042772,-2800.0,0.000153,5]
[420123300,1775697042781,-150.0,0.00015303,2]
[420123301,1775697042791,-500.0,0.00015309,2]
[420123302,1775697042800,-151.0,0.00015309,2]
[420123303,1775697042810,-150.0,0.00015317,2]
[420123304,1775697042818,-500.0,0.00015358,2]
[420123305,1775697042828,-162.0,0.0001536,2]
[420123306,1775697042837,-1562.0,0.0001536,2]
[420123307,1775697042846,-1573.0,0.0001536,2]
[420123308,1775697042856,-162.0,0.0001536,2]
[420123309,1775697042865,-500.0,0.00015364,2]
[420123310,1775697042874,-151.0,0.00015364,2]
[420123311,1775697042883,-599.16162259,0.00015396,2]
[420123312,1775697042893,-3700.0,0.000154,5]
[420123313,1775697042902,-500.0,0.00015405,2]
[420123314,1775697042912,-2000.0,0.00015405,2]
[420123315,1775697042921,-1789.0,0.00015415,2]
[420123316,1775697042931,-500.0,0.00015419,2]
[420123317,1775697042940,-151.0,0.00015419,2]
[420123318,1775697042950,-838.0,0.00015444,2]
[420123319,1775697042959,-200.0,0.00015472,2]
[420123320,1775697042968,-190.97023426,0.00015472,2]
[420123321,1775697042978,-1235.18214925,0.00015472,2]
[420123322,1775697042987,-771.01748645,0.00015472,2]
[420123323,1775697042996,-181.08010149,0.00015472,2]
[420123324,1775697043006,-500.0,0.00015474,2]
[420123325,1775697043015,-151.0,0.00015474,2]
[420123326,1775697043025,-174.104,0.00015474,2]
[420123327,1775697043035,-1152.0,0.00015479,2]
[420123328,1775697043045,-2000.0,0.00015487,2]
[420123329,1775697043055,-1252.0,0.00015491,2]
[420123330,1775697043065,-4080.51,0.00015492,2]
[420123331,1775697043075,-4700.0,0.000155,5]
[420123332,1775697043085,-4609.0,0.00015516,2]
[420123333,1775697043096,-1600.0,0.00015517,2]
[420123334,1775697043106,-500.0,0.00015529,2]
[420123335,1775697043116,-151.0,0.00015529,2]
[420123336,1775697043125,-500.0,0.00015534,2]
[420123337,1775697043136,-237.0,0.00015546,2]
[420123338,1775697043145,-2000.0,0.0001555,2]
[420123339,1775697043154,-2000.0,0.0001555,2]
[420123340,1775697043163,-2000.0,0.0001555,2]
[420123341,1775697043173,-370.39,0.00015568,2]
[420123342,1775697043182,-272.0,0.00015572,2]
[420123343,1775697043192,-272.0,0.00015576,2]
[420123345,1775697043203,-200.0,0.00015583,2]
[420123347,1775697043213,-500.0,0.00015584,2]
[420123348,1775697043223,-202.09036062,0.00015584,2]
[420123349,1775697043235,-500.0,0.00015584,2]
[420123350,1775697043246,-500.0,0.00015584,2]
[420123351,1775697043256,-500.0,0.00015584,2]
[420123352,1775697043266,-200.0,0.00015584,2]
[420123353,1775697043275,-185.0,0.00015591,2]
[420123354,1775697043286,-159.0,0.000156,2]
[420123355,1775697043297,-159.0,0.000156,2]
[420123356,1775697043307,-3056.0,0.000156,2]
[420123357,1775697043316,-900.0,0.000156,5]
[420123358,1775697043326,-4206.08837508,0.00015604,2]
[420123359,1775697043335,-248.44472635,0.00015604,2]
[420123360,1775697043343,-170.03631461,0.00015604,2]
[420123361,1775697043352,-150.0,0.00015607,2]
[420123362,1775697043362,-150.28660628,0.0001561,2]
[420123363,1775697043371,-150.0,0.0001561,2]
[420123364,1775697043380,-150.0,0.0001561,2]
[420123365,1775697043390,-2858.28665742,0.0001561,2]
[420123366,1775697043402,-5000.0,0.0001561,2]
[420123367,1775697043412,-2858.28665738,0.00015611,2]
[420123368,1775697043421,-2858.28665738,0.00015612,2]
[420123369,1775697043431,-2858.28665738,0.00015614,2]
[420123370,1775697043440,-490.0,0.00015614,2]
[420123371,1775697043449,-2858.28665738,0.00015615,2]
[420123373,1775697043459,-2858.28665738,0.00015616,2]
[420123375,1775697043469,-1000.0,0.00015617,2]
[420123378,1775697043478,-168.12,0.00015625,2]
[420123381,1775697043487,-150.0,0.00015625,2]
[420123384,1775697043497,-152.45626765,0.00015634,2]
[420123387,1775697043506,-855.53781818,0.00015634,2]
[420123389,1775697043516,-500.0,0.00015636,2]
[420123391,1775697043525,-500.0,0.00015636,2]
[420123392,1775697043535,-500.0,0.00015636,2]
[420123394,1775697043544,-500.0,0.00015636,2]
[420123395,1775697043553,-500.0,0.00015636,2]
[420123396,1775697043562,-4206.088375,0.00015637,2]
[420123397,1775697043571,-500.0,0.00015639,2]
[420123398,1775697043580,-250.0,0.00015644,2]
[420123399,1775697043589,-500.0,0.00015648,2]
[420123400,1775697043601,-500.0,0.00015648,2]
[420123401,1775697043610,-500.0,0.00015648,2]
[420123402,1775697043620,-500.0,0.00015648,2]
[420123403,1775697043629,-500.0,0.00015648,2]